bitfinex-derivatives/quotes_BTCF0:USTF0_20250822
["timestamp","ask_amount","ask_price","bid_price","bid_amount"]
[1755861220437,0.1008189,112420.0,112410.0,0.67534075]
[1755861222140,0.1173789,112420.0,112410.0,0.3942899]
[1755861222345,0.1492989,112420.0,112410.0,0.67534075]
[1755861222642,0.5345689,112420.0,112410.0,0.3942899]
[1755861223339,0.5345689,112420.0,112410.0,0.67534075]
[1755861223528,0.16724331,112420.0,112410.0,0.67534075]
[1755861225340,0.16087331,112420.0,112410.0,0.67534075]
[1755861225736,0.52804331,112420.0,112410.0,0.67534075]
[1755861227441,0.16724331,112420.0,112410.0,0.67534075]
[1755861228443,0.16724331,112420.0,112410.0,0.64300075]
[1755861228640,0.19046331,112420.0,112410.0,0.67736075]
[1755861228841,0.55126331,112420.0,112410.0,0.67736075]
[1755861229638,0.52804331,112420.0,112410.0,0.67736075]
[1755861230246,0.52804331,112420.0,112410.0,0.3963099]
[1755861230445,0.52804331,112420.0,112410.0,0.67736075]
[1755861230640,0.55126331,112420.0,112410.0,0.67736075]
[1755861231241,0.80126331,112420.0,112410.0,0.1119499]
[1755861231442,0.80126331,112420.0,112410.0,0.1463099]
[1755861231743,1.08231416,112420.0,112410.0,0.0966099]
[1755861231961,1.08231416,112420.0,112410.0,0.0704799]
[1755861232865,1.08231416,112420.0,112410.0,0.1150399]
[1755861233054,0.80126331,112420.0,112410.0,0.1464499]
[1755861233252,1.08231416,112420.0,112410.0,0.1464499]
[1755861233462,0.80126331,112420.0,112410.0,0.1464499]
[1755861234270,0.80126331,112420.0,112410.0,0.1312899]
[1755861234769,0.80126331,112420.0,112410.0,0.1464499]
[1755861235467,1.08231416,112420.0,112410.0,0.1464499]
[1755861235668,1.08231416,112420.0,112410.0,0.1312899]
[1755861236170,1.08231416,112420.0,112410.0,0.0806799]
[1755861236363,1.08231416,112420.0,112410.0,0.0246399]
[1755861237861,1.08311416,112420.0,112390.0,0.03953]
[1755861238164,0.70461085,112400.0,112390.0,0.05727]
[1755861238369,0.44150441,112400.0,112390.0,0.04707]
[1755861238661,0.72255526,112400.0,112390.0,0.04707]
[1755861238861,0.42356,112400.0,112390.0,0.08868]
[1755861239066,0.70461085,112400.0,112390.0,0.12404]
[1755861239266,0.42356,112400.0,112390.0,0.12404]
[1755861239966,0.42356,112400.0,112390.0,0.40509085]
[1755861240164,0.42356,112400.0,112390.0,0.65509085]
[1755861240365,0.42356,112400.0,112390.0,0.65409085]
[1755861240572,0.42456,112400.0,112390.0,0.65909085]
[1755861240868,0.42456,112400.0,112390.0,0.37804]
[1755861241068,0.42556,112400.0,112390.0,0.37704]
[1755861241364,0.42556,112400.0,112390.0,0.37373085]
[1755861241569,0.42556,112400.0,112390.0,0.07752]
[1755861241570,0.70661085,112400.0,112390.0,0.07752]
[1755861241770,0.42556,112400.0,112390.0,0.11188]
[1755861242075,0.70661085,112400.0,112390.0,0.12604]
[1755861243072,0.42556,112400.0,112390.0,0.12604]
[1755861243466,0.5145455,112400.0,112390.0,0.12604]
[1755861243875,0.5145455,112400.0,112390.0,0.40709085]
[1755861245773,0.4913255,112400.0,112390.0,0.40709085]
[1755861247980,0.4610455,112400.0,112390.0,0.40709085]
[1755861248168,0.0909855,112400.0,112390.0,0.65709085]
[1755861248373,0.0909855,112400.0,112390.0,1.01789085]
[1755861248671,0.0909855,112400.0,112390.0,1.10688425]
[1755861248874,0.0909855,112400.0,112390.0,1.10768425]
[1755861249980,0.0909855,112400.0,112390.0,1.13968167]
[1755861250277,0.0909855,112400.0,112390.0,1.13888167]
[1755861251474,0.0909855,112400.0,112390.0,1.13968167]
[1755861251876,0.0909855,112400.0,112390.0,0.85863082]
[1755861252075,0.0909855,112400.0,112390.0,1.13968167]
[1755861252281,0.0909855,112400.0,112390.0,1.13888167]
[1755861253176,0.0909855,112400.0,112390.0,1.04988827]
[1755861254480,0.47100231,112420.0,112390.0,1.06499157]
[1755861254680,0.01588,112410.0,112400.0,0.42238448]
[1755861255379,0.01588,112410.0,112400.0,0.78318448]
[1755861255579,0.10277231,112420.0,112410.0,0.12304]
[1755861255784,0.10386231,112420.0,112410.0,0.40409085]
[1755861256077,0.08798231,112420.0,112410.0,1.10386835]
[1755861256283,0.08798231,112420.0,112410.0,1.3849192]
[1755861256483,0.08698231,112420.0,112410.0,1.3849192]
[1755861257384,0.65373411,112440.0,112430.0,0.12011]
[1755861257385,0.67043411,112440.0,112430.0,0.12011]
[1755861257686,0.70463411,112440.0,112430.0,0.40116085]
[1755861258586,0.36906411,112440.0,112430.0,0.40116085]
[1755861258782,0.37306411,112440.0,112430.0,0.40216085]
[1755861259084,0.53518411,112440.0,112430.0,0.12111]
[1755861259481,0.53818411,112440.0,112430.0,0.12111]
[1755861259681,0.53738411,112440.0,112430.0,0.12111]
[1755861259886,0.81923496,112440.0,112430.0,0.08844]
[1755861260083,1.06923496,112440.0,112430.0,0.05757]
[1755861260288,1.06923496,112440.0,112430.0,0.001]
[1755861260784,1.35028581,112440.0,112430.0,0.001]
[1755861261382,1.06923496,112440.0,112430.0,0.001]
[1755861261992,1.27227496,112440.0,112430.0,0.001]
[1755861264383,1.06923496,112440.0,112430.0,0.001]
[1755861264879,0.10014,112430.0,112420.0,0.01786728]
[1755861265191,0.74199085,112430.0,112420.0,0.01786728]
[1755861266082,0.74399085,112430.0,112420.0,0.01786728]
[1755861266478,0.74399085,112430.0,112420.0,0.13797728]
[1755861267186,0.74799085,112430.0,112420.0,0.13897728]
[1755861273293,0.46694,112430.0,112420.0,0.13897728]
[1755861276192,0.46694,112430.0,112420.0,0.42002813]
[1755861276788,0.10614,112430.0,112420.0,0.42002813]
[1755861276994,0.46694,112430.0,112420.0,0.42002813]
[1755861277397,0.40689,112430.0,112420.0,0.67002813]
[1755861277590,0.04609,112430.0,112420.0,0.67002813]
[1755861277789,0.44089,112430.0,112420.0,0.67002813]
[1755861277989,0.44171,112430.0,112420.0,0.67002813]
[1755861281588,0.46694,112430.0,112420.0,0.38897728]
[1755861282295,0.74799085,112430.0,112420.0,0.35630728]
[1755861282601,0.74799085,112430.0,112420.0,0.38897728]
[1755861283797,0.46694,112430.0,112420.0,0.38897728]
[1755861286001,0.40771,112430.0,112420.0,0.38897728]
[1755861286201,0.44171,112430.0,112420.0,0.67002813]
[1755861286503,0.46694,112430.0,112420.0,0.38897728]
[1755861286706,0.46694,112430.0,112420.0,0.37111]
[1755861288398,0.46694,112430.0,112420.0,0.33844]
[1755861288600,0.46694,112430.0,112420.0,0.37145]
[1755861288901,0.46694,112430.0,112420.0,0.3241]
[1755861289101,0.46694,112430.0,112420.0,0.37156]
[1755861291197,0.46694,112430.0,112420.0,0.0247]
[1755861291198,0.99799085,112430.0,112420.0,0.0247]
[1755861291504,0.99799085,112430.0,112420.0,0.03493]
[1755861292704,0.99799085,112430.0,112420.0,0.0247]
[1755861293101,0.99799085,112430.0,112420.0,0.001]
[1755861293998,0.71694,112430.0,112420.0,0.001]
[1755861294201,0.99799085,112430.0,112420.0,0.001]
[1755861297115,0.71694,112430.0,112420.0,0.001]
[1755861297414,0.99799085,112430.0,112420.0,0.001]
[1755861300015,0.71694,112430.0,112420.0,0.001]
[1755861300217,0.99799085,112430.0,112420.0,0.001]
[1755861300814,0.99799085,112430.0,112400.0,0.05682363]
[1755861301114,0.45604,112410.0,112400.0,0.13918363]
[1755861301316,1.09789085,112410.0,112400.0,0.13918363]
[1755861302007,1.09789085,112410.0,112400.0,0.10717363]
[1755861302213,0.81684,112410.0,112400.0,0.14018363]
[1755861302608,0.81684,112410.0,112400.0,0.13918363]
[1755861302813,0.81784,112410.0,112400.0,0.42123448]
[1755861303520,0.81884,112410.0,112400.0,0.42223448]
[1755861303921,0.81884,112410.0,112400.0,0.14118363]
[1755861304121,0.81884,112410.0,112400.0,0.42223448]
[1755861304822,0.81884,112410.0,112400.0,0.14118363]
[1755861305222,0.79549,112410.0,112400.0,0.14118363]
[1755861305424,0.81884,112410.0,112400.0,0.42223448]
[1755861305626,0.81884,112410.0,112400.0,0.14118363]
[1755861306425,0.76289,112410.0,112400.0,0.67223448]
[1755861306626,0.79549,112410.0,112400.0,0.39118363]
[1755861306821,0.79549,112410.0,112400.0,0.67223448]
[1755861307325,0.81884,112410.0,112400.0,0.67223448]
[1755861308032,0.81884,112410.0,112400.0,0.39118363]
[1755861308231,1.09989085,112410.0,112400.0,0.37289]
[1755861309329,0.81884,112410.0,112400.0,0.37289]
[1755861309829,1.09989085,112410.0,112400.0,0.12289]
[1755861310929,0.81884,112410.0,112400.0,0.12289]
[1755861311527,1.09989085,112410.0,112400.0,0.12289]
[1755861312120,0.81884,112410.0,112400.0,0.12289]
[1755861312719,0.81884,112410.0,112400.0,0.08988]
[1755861312924,1.09989085,112410.0,112400.0,0.06739]
[1755861313123,1.09989085,112410.0,112400.0,0.08988]
[1755861313320,1.09989085,112410.0,112400.0,0.07543]
[1755861313724,1.09989085,112410.0,112400.0,0.0588]
[1755861313920,0.81884,112410.0,112400.0,0.0588]
[1755861314123,1.09989085,112410.0,112400.0,0.09181]
[1755861314320,1.09989085,112410.0,112400.0,0.12289]
[1755861314516,1.09989085,112410.0,112400.0,0.08988]
[1755861314725,1.09989085,112410.0,112400.0,0.05294]
[1755861314925,1.09989085,112410.0,112400.0,0.07543]
[1755861315328,1.09989085,112410.0,112400.0,0.0588]
[1755861316729,1.09989085,112410.0,112400.0,0.03631]
[1755861316934,1.09989085,112410.0,112400.0,0.002]
[1755861317928,0.81884,112410.0,112400.0,0.002]
[1755861318143,1.09989085,112410.0,112400.0,0.002]
[1755861318435,0.81884,112410.0,112400.0,0.002]
[1755861318624,1.09989085,112410.0,112400.0,0.002]
[1755861319935,0.81884,112410.0,112400.0,0.002]
[1755861320125,1.09989085,112410.0,112400.0,0.002]
[1755861322024,0.81884,112410.0,112400.0,0.002]
[1755861322227,1.09989085,112410.0,112400.0,0.002]
[1755861322428,1.34989085,112410.0,112400.0,0.002]
[1755861324741,1.06884,112410.0,112400.0,0.002]
[1755861324933,1.34989085,112410.0,112400.0,0.002]
[1755861326634,1.06884,112410.0,112400.0,0.002]
[1755861326942,1.34989085,112410.0,112400.0,0.002]
[1755861327236,1.06884,112410.0,112400.0,0.002]
[1755861327443,1.34989085,112410.0,112400.0,0.12361]
[1755861327838,1.34989085,112410.0,112400.0,0.0907]
[1755861328039,1.34989085,112410.0,112400.0,0.05952]
[1755861328836,1.36788934,112410.0,112400.0,0.05952]
[1755861329039,1.08683849,112410.0,112400.0,0.05952]
[1755861329233,1.36788934,112410.0,112400.0,0.05952]
[1755861329437,1.08683849,112410.0,112400.0,0.05952]
[1755861329742,1.11788934,112410.0,112400.0,0.05952]
[1755861330245,1.11788934,112410.0,112400.0,0.002]
[1755861333746,1.39894019,112410.0,112400.0,0.002]
[1755861333945,1.55746019,112410.0,112400.0,0.002]
[1755861334140,1.80746019,112410.0,112400.0,0.002]
[1755861334344,0.05564,112400.0,112380.0,0.08251]
[1755861334545,0.73544085,112390.0,112380.0,0.12161]
[1755861334744,0.47238849,112390.0,112380.0,0.12161]
[1755861334937,0.75343934,112390.0,112380.0,0.12161]
[1755861335648,0.75343934,112390.0,112380.0,0.12461]
[1755861336340,0.76704885,112390.0,112380.0,0.12461]
[1755861337642,0.76704885,112390.0,112380.0,0.12161]
[1755861337849,0.486998,112390.0,112380.0,0.12261]
[1755861338040,0.76804885,112390.0,112380.0,0.12261]
[1755861338242,0.76904885,112390.0,112380.0,0.12261]
[1755861338746,0.76904885,112390.0,112380.0,0.0897]
[1755861338953,0.76904885,112390.0,112380.0,0.05852]
[1755861339356,0.487998,112390.0,112380.0,0.05852]
[1755861339560,0.76904885,112390.0,112380.0,0.09143]
[1755861339851,0.76904885,112390.0,112380.0,0.07338]
[1755861340844,0.487998,112390.0,112380.0,0.12261]
[1755861341153,0.76904885,112390.0,112380.0,0.12261]
[1755861341356,0.487998,112390.0,112380.0,0.12261]
[1755861341560,0.76904885,112390.0,112380.0,0.12261]
[1755861342254,0.77051145,112390.0,112380.0,0.40512345]
[1755861342646,0.77051145,112390.0,112380.0,0.65512345]
[1755861343048,0.77051145,112390.0,112380.0,0.37261]
[1755861343249,0.77051145,112390.0,112380.0,0.65512345]
[1755861343554,0.487998,112390.0,112380.0,0.65512345]
[1755861343759,0.77051145,112390.0,112380.0,0.65512345]
[1755861344150,0.487998,112390.0,112380.0,0.65512345]
[1755861344350,0.77051145,112390.0,112380.0,0.65512345]
[1755861344559,0.77051145,112390.0,112380.0,0.37261]
[1755861344759,0.77051145,112390.0,112380.0,0.0897]
[1755861346247,0.77054866,112390.0,112380.0,0.0897]
[1755861346452,0.487998,112390.0,112380.0,0.05852]
[1755861346654,0.77054866,112390.0,112380.0,0.05852]
[1755861346853,1.02054866,112390.0,112380.0,0.05852]
[1755861349454,1.02054866,112390.0,112380.0,0.03574]
[1755861350455,1.02054866,112390.0,112380.0,0.05746]
[1755861350860,1.02054866,112390.0,112380.0,0.03574]
[1755861351161,1.38134866,112390.0,112380.0,0.02625]
[1755861352058,1.38134866,112390.0,112380.0,0.001]
[1755861354259,1.38034866,112390.0,112380.0,0.001]
[1755861354459,1.38134866,112390.0,112380.0,0.001]
[1755861354962,1.32570866,112390.0,112380.0,0.001]
[1755861355564,1.38107866,112390.0,112380.0,0.001]
[1755861359764,1.38107866,112390.0,112380.0,0.05635]
[1755861359966,1.38107866,112390.0,112380.0,0.001]
[1755861360868,1.38107866,112390.0,112380.0,0.02272]
[1755861361067,1.13107866,112390.0,112380.0,0.11955]
[1755861364768,1.13107866,112390.0,112380.0,0.03463]
[1755861365272,1.13107866,112390.0,112380.0,0.05635]
[1755861365571,1.13107866,112390.0,112380.0,0.03463]
[1755861367560,1.13107866,112390.0,112380.0,0.0104]
[1755861367766,1.13107866,112390.0,112380.0,0.001]
[1755861368272,1.41370844,112390.0,112380.0,0.001]
[1755861375579,1.41370844,112390.0,112380.0,0.05635]
[1755861375787,1.089008,112390.0,112380.0,0.08762]
[1755861375983,1.65418844,112390.0,112380.0,0.11955]
[1755861378987,1.41370844,112390.0,112380.0,0.11955]
[1755861379187,0.848528,112390.0,112380.0,0.11955]
[1755861379390,1.13111822,112390.0,112380.0,0.11955]
[1755861382388,1.41370844,112390.0,112380.0,0.11955]
[1755861383180,1.41370844,112390.0,112380.0,0.05635]
[1755861383786,1.41370844,112390.0,112380.0,0.03463]
[1755861384294,1.41370844,112390.0,112380.0,0.02523]
[1755861385493,1.41370844,112390.0,112380.0,0.001]
[1755861387494,1.41370844,112390.0,112380.0,0.00104]
[1755861388593,1.41370844,112390.0,112380.0,0.02592]
[1755861388794,1.39570995,112390.0,112380.0,0.02592]
[1755861389502,0.83052951,112390.0,112380.0,0.08809]
[1755861389700,1.39570995,112390.0,112380.0,0.05834]
[1755861389901,1.39570995,112390.0,112380.0,0.00104]
[1755861399402,0.83052951,112390.0,112380.0,0.00104]
[1755861399599,1.39570995,112390.0,112380.0,0.00104]
[1755861400912,1.39570995,112390.0,112380.0,0.02592]
[1755861401412,1.39570995,112390.0,112380.0,0.00104]
[1755861403005,1.63798995,112390.0,112380.0,0.00104]
[1755861403209,1.63798995,112390.0,112380.0,0.12216]
[1755861403512,1.63798995,112390.0,112380.0,0.08809]
[1755861403712,1.63798995,112390.0,112380.0,0.07419]
[1755861403902,1.63798995,112390.0,112380.0,0.05834]
[1755861404610,1.63698995,112390.0,112380.0,0.05734]
[1755861404812,1.63798995,112390.0,112380.0,0.03557]
[1755861405307,1.63798995,112390.0,112380.0,0.00104]
[1755861405809,1.39570995,112390.0,112380.0,0.00104]
[1755861407108,1.39570995,112390.0,112380.0,0.02597]
[1755861407309,1.39570995,112390.0,112380.0,0.04874]
[1755861407609,1.39570995,112390.0,112380.0,0.05834]
[1755861408415,0.83052951,112390.0,112380.0,0.05834]
[1755861408715,1.39570995,112390.0,112380.0,0.05834]
[1755861409113,1.39570995,112390.0,112380.0,0.08874]
[1755861409318,1.39570995,112390.0,112380.0,0.12225]
[1755861410717,1.39570995,112390.0,112380.0,0.07443]
[1755861410918,1.39570995,112390.0,112380.0,0.05834]
[1755861411718,1.39570995,112390.0,112380.0,0.09185]
[1755861412218,1.39570995,112390.0,112380.0,0.10616]
[1755861413217,1.39570995,112390.0,112380.0,0.12225]
[1755861415019,0.83052951,112390.0,112380.0,0.12225]
[1755861415214,1.39570995,112390.0,112380.0,0.12225]
[1755861417915,0.83052951,112390.0,112380.0,0.12225]
[1755861418117,1.11311973,112390.0,112380.0,0.12225]
[1755861418316,1.39570995,112390.0,112380.0,0.12225]
[1755861419112,1.08176973,112390.0,112380.0,0.65484022]
[1755861419312,0.80650951,112390.0,112380.0,0.37225]
[1755861419520,1.08909973,112390.0,112380.0,0.65484022]
[1755861419722,0.80650951,112390.0,112380.0,0.65484022]
[1755861420118,1.08909973,112390.0,112380.0,0.65484022]
[1755861420520,1.08909973,112390.0,112380.0,0.37225]
[1755861420724,1.08909973,112390.0,112380.0,0.65484022]
[1755861421120,0.36749973,112390.0,112380.0,0.65484022]
[1755861422323,0.08490951,112390.0,112380.0,0.65484022]
[1755861422617,0.33614973,112390.0,112380.0,0.65484022]
[1755861422815,0.01560951,112390.0,112380.0,0.93743044]
[1755861423215,0.01560951,112390.0,112380.0,1.29823044]
[1755861423426,0.29819973,112390.0,112380.0,1.29823044]
[1755861423618,0.18013097,112390.0,112380.0,0.65484022]
[1755861423918,0.05433,112390.0,112380.0,0.73305]
[1755861424124,0.05433,112390.0,112380.0,0.93743044]
[1755861424323,0.05433,112390.0,112380.0,1.29823044]
[1755861424722,0.02298,112390.0,112380.0,1.29823044]
[1755861425024,0.05433,112390.0,112380.0,1.29823044]
[1755861425412,0.05433,112390.0,112380.0,0.73305]
[1755861425616,0.07003,112390.0,112380.0,0.93743044]
[1755861425816,0.07003,112390.0,112380.0,0.37225]
[1755861426022,0.07003,112390.0,112380.0,0.93743044]
[1755861426221,0.07003,112390.0,112380.0,1.29823044]
[1755861427126,0.08293993,112390.0,112380.0,1.29823044]
[1755861427737,0.08293993,112390.0,112380.0,0.73305]
[1755861427940,0.33418015,112390.0,112380.0,1.32223417]
[1755861428230,0.33418015,112390.0,112380.0,1.29823044]
[1755861429225,0.33418015,112390.0,112380.0,1.38723124]
[1755861429433,0.36553015,112390.0,112380.0,0.8220508]
[1755861429623,0.36553015,112390.0,112380.0,1.38723124]
[1755861430130,0.08293993,112390.0,112380.0,1.38723124]
[1755861430431,0.36553015,112390.0,112380.0,1.38723124]
[1755861431328,0.36553015,112390.0,112380.0,1.29823044]
[1755861431531,0.36553015,112390.0,112380.0,0.96143417]
[1755861434233,0.05158993,112390.0,112380.0,0.96143417]
[1755861434734,0.33418015,112390.0,112380.0,0.96143417]
[1755861435134,0.36553015,112390.0,112380.0,0.96143417]
[1755861435735,0.33418015,112390.0,112380.0,0.96143417]
[1755861435934,0.05158993,112390.0,112380.0,0.96143417]
[1755861436729,0.08293993,112390.0,112380.0,0.96143417]
[1755861437827,0.33418015,112390.0,112380.0,0.96143417]
[1755861438133,0.08293993,112390.0,112380.0,0.96143417]
[1755861439337,0.05158993,112390.0,112380.0,0.96143417]
[1755861439629,0.03588993,112390.0,112380.0,0.96143417]
[1755861442435,0.15496,112400.0,112380.0,1.36341497]
[1755861442642,0.16673655,112400.0,112390.0,0.40094022]
[1755861442944,0.16673655,112400.0,112390.0,0.42494395]
[1755861443140,0.44932677,112400.0,112390.0,0.42494395]
[1755861443442,0.50367677,112400.0,112390.0,0.42494395]
[1755861443739,0.18973655,112400.0,112390.0,0.16023878]
[1755861444035,0.50567677,112400.0,112390.0,0.443829]
[1755861444230,0.52206677,112400.0,112390.0,0.443829]
[1755861444845,0.52306677,112400.0,112390.0,0.443829]
[1755861445538,0.52206677,112400.0,112390.0,0.443829]
[1755861445746,0.52306677,112400.0,112390.0,0.443829]
[1755861445943,0.88386677,112400.0,112390.0,0.443829]
[1755861446345,0.24047655,112400.0,112390.0,0.443829]
[1755861446545,0.52306677,112400.0,112390.0,0.443829]
[1755861446748,0.24047655,112400.0,112390.0,0.443829]
[1755861447045,0.52306677,112400.0,112390.0,0.443829]
[1755861448649,0.24047655,112400.0,112390.0,0.16123878]
[1755861448848,0.24047655,112400.0,112390.0,0.50026176]
[1755861449049,0.52306677,112400.0,112390.0,0.50026176]
[1755861449244,0.52306677,112400.0,112390.0,0.47625803]
[1755861449751,0.24047655,112400.0,112390.0,0.19366781]
[1755861449952,0.52306677,112400.0,112390.0,0.47625803]
[1755861450256,0.24047655,112400.0,112390.0,0.19366781]
[1755861450554,0.52306677,112400.0,112390.0,0.19366781]
[1755861450755,0.52306677,112400.0,112390.0,0.47625803]
[1755861451747,0.24047655,112400.0,112390.0,0.47625803]
[1755861451956,0.24047655,112400.0,112390.0,0.19366781]
[1755861452150,0.52306677,112400.0,112390.0,0.47625803]
[1755861454257,0.24047655,112400.0,112390.0,0.47625803]
[1755861454753,0.52306677,112400.0,112390.0,0.47625803]
[1755861456359,0.24047655,112400.0,112390.0,0.47625803]
[1755861456954,0.52306677,112400.0,112390.0,0.47625803]
[1755861457755,0.24047655,112400.0,112390.0,0.47625803]
[1755861457962,0.52306677,112400.0,112390.0,0.47625803]
[1755861458364,0.24047655,112400.0,112390.0,0.47625803]
[1755861458954,0.54659677,112400.0,112390.0,0.47625803]
[1755861459764,0.26400655,112400.0,112390.0,0.19366781]
[1755861459960,0.54659677,112400.0,112390.0,0.47625803]
[1755861460167,0.54659677,112400.0,112390.0,0.19366781]
[1755861460358,0.54659677,112400.0,112390.0,0.47625803]
[1755861461556,0.54659677,112400.0,112390.0,0.4682328]
[1755861463169,0.26400655,112400.0,112390.0,0.4682328]
[1755861463371,0.54659677,112400.0,112390.0,0.4682328]
[1755861464464,0.16973655,112400.0,112390.0,1.42658792]
[1755861464965,0.16973655,112400.0,112390.0,1.1439977]
[1755861465155,0.16973655,112400.0,112390.0,0.50060748]
[1755861465360,0.22408655,112400.0,112390.0,0.6942044]
[1755861465761,0.24047655,112400.0,112390.0,0.6942044]
[1755861465966,0.24047655,112400.0,112390.0,0.72625803]
[1755861466961,0.24047655,112400.0,112390.0,1.08705803]
[1755861467167,0.20912655,112400.0,112390.0,0.72625803]
[1755861467469,0.24047655,112400.0,112390.0,0.72625803]
[1755861468270,0.24047655,112400.0,112390.0,1.11109031]
[1755861469176,0.16973655,112400.0,112390.0,1.48267493]
[1755861469369,0.16973655,112400.0,112390.0,1.39368053]
[1755861470364,0.16973655,112400.0,112390.0,1.11109031]
[1755861471072,0.16973655,112400.0,112390.0,1.36964825]
[1755861471571,0.16973655,112400.0,112390.0,0.8199678]
[1755861471766,0.16973655,112400.0,112390.0,1.10255802]
[1755861473078,0.16973655,112400.0,112390.0,1.38514824]
[1755861474269,0.16973655,112400.0,112390.0,1.10255802]
[1755861474571,0.16973655,112400.0,112390.0,0.74175802]
[1755861474769,0.19281655,112400.0,112390.0,0.77381105]
[1755861476874,0.19281655,112400.0,112390.0,0.6942044]
[1755861477272,0.19281655,112400.0,112390.0,0.67631935]
[1755861478069,0.19281655,112400.0,112390.0,0.39372913]
[1755861478374,0.22416655,112400.0,112390.0,0.67631935]
[1755861478677,0.22416655,112400.0,112390.0,0.39372913]
[1755861478876,0.22416655,112400.0,112390.0,0.70837305]
[1755861479562,0.19281655,112400.0,112390.0,0.70837305]
[1755861479767,0.22416655,112400.0,112390.0,0.42578283]
[1755861479966,0.22416655,112400.0,112390.0,0.70837305]
[1755861480370,0.16973655,112400.0,112390.0,0.99096327]
[1755861480678,0.16973655,112400.0,112390.0,1.06917305]
[1755861481178,0.16973655,112400.0,112390.0,1.35176327]
[1755861481679,0.19281655,112400.0,112390.0,1.35176327]
[1755861482168,0.19281655,112400.0,112390.0,1.06917305]
[1755861482569,0.19281655,112400.0,112390.0,0.70837305]
[1755861482873,0.16973655,112400.0,112390.0,0.70837305]
[1755861483267,0.16973655,112400.0,112390.0,0.99096327]
[1755861484478,0.19281655,112400.0,112390.0,0.99096327]
[1755861484676,0.16973655,112400.0,112390.0,0.99096327]
[1755861485071,0.16973655,112400.0,112390.0,0.96658414]
[1755861487875,0.16973655,112400.0,112390.0,1.32738414]
[1755861491178,0.55361655,112400.0,112390.0,0.4014037]
[1755861491380,0.19281655,112400.0,112390.0,0.68399392]
[1755861493285,0.21356655,112400.0,112390.0,0.68399392]
[1755861494875,0.18221655,112400.0,112390.0,0.68399392]
[1755861495688,0.21356655,112400.0,112390.0,0.68399392]
[1755861496893,0.19808655,112400.0,112390.0,0.68399392]
[1755861497091,0.22943655,112400.0,112390.0,0.68399392]
[1755861499482,0.19808655,112400.0,112390.0,0.68399392]
[1755861500092,0.19808655,112400.0,112390.0,0.4014037]
[1755861500292,0.22943655,112400.0,112390.0,0.68399392]
[1755861500491,0.22943655,112400.0,112390.0,1.04479392]
[1755861500991,0.18221655,112400.0,112390.0,1.04479392]
[1755861501491,0.18221655,112400.0,112390.0,1.09234754]
[1755861501796,0.18221655,112400.0,112390.0,1.06029384]
[1755861502693,0.18221655,112400.0,112390.0,1.09235556]
[1755861503300,0.18221655,112400.0,112390.0,1.37494578]
[1755861503591,0.15913655,112400.0,112390.0,1.37494578]
[1755861503789,0.15913655,112400.0,112390.0,1.34288406]
[1755861509299,0.19602655,112400.0,112390.0,1.34288406]
[1755861509602,0.22737655,112400.0,112390.0,0.73208406]
[1755861509984,1.42702699,112400.0,112390.0,0.11889158]
[1755861510190,1.42702699,112400.0,112390.0,0.03305158]
[1755861510390,0.86184655,112400.0,112390.0,0.02503963]
[1755861510698,0.86184655,112400.0,112390.0,0.42649985]
[1755861510699,0.86104655,112400.0,112390.0,0.42649985]
[1755861510997,0.22737655,112400.0,112390.0,0.42649985]
[1755861511298,0.47737655,112400.0,112390.0,0.70909007]
[1755861511500,0.47737655,112400.0,112390.0,0.40246022]
[1755861511696,0.47737655,112400.0,112390.0,0.42649985]
[1755861511894,0.78283677,112400.0,112390.0,0.42649985]
[1755861514105,0.51851655,112400.0,112390.0,0.32569985]
[1755861514401,0.51851655,112400.0,112390.0,0.37418985]
[1755861515103,0.80110677,112400.0,112390.0,0.37418985]
[1755861516105,0.80110677,112400.0,112390.0,0.40803985]
[1755861518203,0.80110677,112400.0,112390.0,0.12544963]
[1755861518506,0.80110677,112400.0,112390.0,0.40803985]
[1755861520006,0.51851655,112400.0,112390.0,0.40803985]
[1755861521606,0.51851655,112400.0,112390.0,0.13346158]
[1755861521813,0.51851655,112400.0,112390.0,0.4160518]
[1755861523010,0.80110677,112400.0,112390.0,0.13346158]
[1755861523206,0.80110677,112400.0,112390.0,0.15749237]
[1755861523512,0.87931655,112400.0,112390.0,0.44008259]
[1755861524416,0.87931655,112400.0,112390.0,0.44008217]
[1755861525009,0.80110677,112400.0,112390.0,0.44008217]
[1755861526712,0.51851655,112400.0,112390.0,0.44008217]
[1755861527016,0.51851655,112400.0,112390.0,0.15749195]
[1755861527218,0.51851655,112400.0,112390.0,0.44008217]
[1755861530314,0.51851655,112400.0,112390.0,0.4160518]
[1755861531709,0.51851655,112400.0,112390.0,0.44008138]
[1755861532811,0.51851655,112400.0,112390.0,0.4160518]
[1755861533012,0.51851655,112400.0,112390.0,0.44008157]
[1755861533523,0.51140655,112400.0,112390.0,0.78763702]
[1755861533724,0.21889655,112400.0,112390.0,1.03763702]
[1755861533915,0.21889655,112400.0,112390.0,1.39843702]
[1755861534218,0.21889655,112400.0,112390.0,1.42246687]
[1755861534413,0.18078655,112400.0,112390.0,1.39843702]
[1755861535315,0.14736,112400.0,112390.0,1.39923702]
[1755861535514,0.14736,112400.0,112390.0,1.44679064]
[1755861536022,0.14736,112400.0,112390.0,1.41473906]
[1755861536321,0.14736,112400.0,112390.0,1.69732928]
[1755861536517,0.25296,112410.0,112400.0,0.1371371]
[1755861536724,0.25296,112410.0,112400.0,1.44768389]
[1755861537022,0.25296,112410.0,112400.0,1.44848389]
[1755861537220,0.25296,112410.0,112400.0,1.69848389]
[1755861537422,0.25296,112410.0,112400.0,1.71400138]
[1755861538220,0.25596,112410.0,112400.0,1.71500138]
[1755861538609,0.25696,112410.0,112400.0,1.71700138]
[1755861538815,0.03755,112430.0,112400.0,1.66944776]
[1755861539108,0.07157,112430.0,112420.0,1.39274163]
[1755861539316,0.05586,112430.0,112420.0,1.39274163]
[1755861539519,0.02265,112430.0,112420.0,1.39274163]
[1755861540021,0.37437,112440.0,112430.0,0.1052331]
[1755861540220,0.40729,112440.0,112430.0,0.65236413]
[1755861540522,0.42152,112440.0,112430.0,0.36935087]
[1755861540722,0.42152,112440.0,112430.0,0.08718369]
[1755861540924,0.42152,112440.0,112430.0,0.36935087]
[1755861541115,0.42352,112440.0,112430.0,0.37035087]
[1755861541517,0.42352,112440.0,112430.0,0.45931417]
[1755861542019,0.42352,112440.0,112430.0,0.82011417]
[1755861542211,0.42552,112440.0,112430.0,0.82111417]
[1755861542619,0.42552,112440.0,112430.0,0.73215087]
[1755861543320,0.42552,112440.0,112430.0,0.34736718]
[1755861543524,0.78632,112440.0,112430.0,0.34736718]
[1755861543927,0.78632,112440.0,112430.0,0.0652]